fUSD/lending_fUSD_20240625
["ID","MTS","AMOUNT","RATE_DAILY","PERIOD"]
[330392699,1719343840794,-500.0,0.00019178,2]
[330392700,1719343840804,-589.2,0.00019178,2]
[330392701,1719343840814,-500.0,0.00019178,2]
[330392702,1719343840824,-500.0,0.00019178,2]
[330392703,1719343840835,-500.0,0.00019178,2]
[330392704,1719343840846,-500.0,0.00019178,2]
[330392705,1719343840856,-500.0,0.00019178,2]
[330392706,1719343840871,-500.0,0.00019178,2]
[330392707,1719343840881,-500.0,0.00019178,2]
[330392708,1719343840891,-1094.5,0.00019178,2]
[330392709,1719343840905,-590.19,0.00019178,2]
[330392710,1719343840915,-667.38,0.00019178,2]
[330392711,1719343840925,-500.0,0.00019178,2]
[330392712,1719343840935,-606.49,0.00019178,2]
[330392713,1719343840945,-500.0,0.00019178,2]
[330392714,1719343840955,-500.0,0.00019178,2]
[330392715,1719343840967,-500.0,0.00019178,2]
[330392716,1719343840977,-964.21,0.00019178,2]
[330392717,1719343840987,-500.0,0.00019178,2]
[330392718,1719343840996,-809.95,0.00019178,2]
[330392719,1719343841006,-500.0,0.00019178,2]
[330392720,1719343841016,-500.0,0.00019178,2]
[330392721,1719343841026,-1135.6,0.00019178,2]
[330392722,1719343841035,-500.0,0.00019178,2]
[330392723,1719343841045,-500.0,0.00019178,2]
[330392724,1719343841055,-500.0,0.00019178,2]
[330392725,1719343841066,-500.0,0.00019178,2]
[330392726,1719343841075,-500.0,0.00019178,2]
[330392727,1719343841085,-870.29,0.00019178,2]
[330392728,1719343841095,-500.0,0.00019178,2]
[330392729,1719343841105,-510.99333183,0.00019178,2]
[330392730,1719343841117,-500.0,0.00019178,2]
[330392732,1719343841129,-597.09,0.00019178,2]
[330392734,1719343841142,-500.0,0.00019178,2]
[330392736,1719343841152,-718.49,0.00019178,2]
[330392738,1719343841162,-682.92,0.00019178,2]
[330392740,1719343841173,-500.0,0.00019178,2]
[330392741,1719343841183,-500.0,0.00019178,2]
[330392744,1719343841193,-500.0,0.00019178,2]
[330392746,1719343841203,-500.0,0.00019178,2]
[330392748,1719343841216,-500.0,0.00019178,2]
[330392749,1719343841226,-500.0,0.00019178,2]
[330392752,1719343841237,-513.55,0.00019178,2]
[330392754,1719343841247,-500.0,0.00019178,2]
[330392756,1719343841256,-600.42,0.00019178,2]
[330392757,1719343841266,-500.0,0.00019178,2]
[330392760,1719343841276,-500.0,0.00019178,2]
[330392761,1719343841286,-500.0,0.00019178,2]
[330392764,1719343841296,-500.0,0.00019178,2]
[330392765,1719343841306,-500.0,0.00019178,2]
[330392767,1719343841316,-500.0,0.00019178,2]
[330392769,1719343841325,-500.0,0.00019178,2]
[330392771,1719343841335,-608.55,0.00019178,2]
[330392773,1719343841345,-500.0,0.00019178,2]
[330392775,1719343841355,-500.0,0.00019178,2]
[330392777,1719343841365,-610.89309213,0.00019178,2]
[330392779,1719343841375,-613.17845723,0.00019178,2]
[330392781,1719343841385,-500.0,0.00019178,2]
[330392783,1719343841395,-585.53122702,0.00019178,2]
[330392785,1719343841405,-500.0,0.00019178,2]
[330392787,1719343841415,-500.0,0.00019178,2]
[330392789,1719343841424,-500.0,0.00019178,2]
[330392791,1719343841434,-807.71,0.00019178,2]
[330392793,1719343841444,-2135.37,0.00019178,2]
[330392795,1719343841454,-549.14,0.00019178,2]
[330392797,1719343841463,-500.0,0.00019178,2]
[330392799,1719343841473,-500.0,0.00019178,2]
[330392801,1719343841482,-500.0,0.00019178,2]
[330392804,1719343841494,-500.0,0.00019178,2]
[330392806,1719343841504,-500.0,0.00019178,2]
[330392808,1719343841514,-500.0,0.00019178,2]
[330392810,1719343841523,-500.0,0.00019178,2]
[330392811,1719343841534,-500.0,0.00019178,2]
[330392814,1719343841544,-823.24,0.00019178,2]
[330392816,1719343841556,-500.0,0.00019178,2]
[330392818,1719343841566,-526.11,0.00019178,2]
[330392820,1719343841578,-500.0,0.00019178,2]
[330392822,1719343841588,-500.0,0.00019178,2]
[330392824,1719343841598,-500.0,0.00019178,2]
[330392826,1719343841608,-500.0,0.00019178,2]
[330392828,1719343841619,-747.17,0.00019178,2]
[330392830,1719343841629,-625.98,0.00019178,2]
[330392832,1719343841638,-2241.78,0.00019178,2]
[330392834,1719343841648,-500.0,0.00019178,2]
[330392836,1719343841658,-500.0,0.00019178,2]
[330392838,1719343841668,-500.0,0.00019178,2]
[330392840,1719343841678,-500.0,0.00019178,2]
[330392842,1719343841687,-500.0,0.00019178,2]
[330392844,1719343841697,-500.0,0.00019178,2]
[330392846,1719343841707,-500.0,0.00019178,2]
[330392847,1719343841716,-500.0,0.00019178,2]
[330392850,1719343841726,-500.0,0.00019178,2]
[330392852,1719343841736,-500.0,0.00019178,2]
[330392854,1719343841746,-500.0,0.00019178,2]
[330392856,1719343841756,-590.4,0.00019178,2]
[330392858,1719343841766,-628.66071025,0.00019178,2]
[330392860,1719343841775,-777.19,0.00019178,2]
[330392862,1719343841785,-500.0,0.00019178,2]
[330392864,1719343841794,-500.0,0.00019178,2]
[330392865,1719343841804,-784.17,0.00019178,2]
[330392867,1719343841814,-700.47,0.00019178,2]
[330392870,1719343841823,-500.0,0.00019178,2]
[330392871,1719343841833,-500.0,0.00019178,2]
[330392874,1719343841844,-500.0,0.00019178,2]
[330392876,1719343841854,-500.0,0.00019178,2]
[330392878,1719343841864,-500.0,0.00019178,2]
[330392879,1719343841874,-500.0,0.00019178,2]
[330392881,1719343841884,-500.0,0.00019178,2]
[330392883,1719343841893,-500.0,0.00019178,2]
[330392885,1719343841903,-151.0,0.00019178,2]
[330392887,1719343841913,-500.0,0.00019178,2]
[330392889,1719343841923,-614.84,0.00019178,2]
[330392892,1719343841933,-1020.2,0.00019178,2]
[330392893,1719343841942,-551.16,0.00019178,2]
[330392894,1719343841951,-502.25,0.00019178,2]
[330392895,1719343841961,-641.61,0.00019178,2]
[330392896,1719343841970,-500.0,0.00019178,2]
[330392897,1719343841980,-674.61,0.00019178,2]
[330392898,1719343841990,-596.04,0.00019178,2]
[330392899,1719343842000,-500.0,0.00019178,2]
[330392900,1719343842009,-500.0,0.00019178,2]
[330392901,1719343842019,-500.0,0.00019178,2]
[330392902,1719343842028,-293.55338047,0.00019178,2]
[330392903,1719343842037,-914.35,0.00019178,2]
[330392904,1719343842046,-646.39,0.00019178,2]
[330392905,1719343842056,-956.61,0.00019178,2]
[330392906,1719343842065,-500.0,0.00019178,2]
[330392907,1719343842075,-668.09,0.00019178,2]
[330392908,1719343842084,-500.0,0.00019178,2]
[330392909,1719343842092,-454.42614895,0.00019178,2]
[330392910,1719343842102,-500.0,0.00019178,2]
[330392911,1719343842111,-500.0,0.00019178,2]
[330392912,1719343842122,-1085.02,0.00019178,2]
[330392913,1719343842136,-584.86,0.00019178,2]
[330392914,1719343842146,-500.0,0.00019178,2]
[330392915,1719343842155,-151.0,0.00019178,2]
[330392916,1719343842166,-500.0,0.00019178,2]
[330392917,1719343842176,-801.07,0.00019178,2]
[330392918,1719343842186,-500.0,0.00019178,2]
[330392919,1719343842195,-639.12,0.00019178,2]
[330392920,1719343842205,-500.0,0.00019178,2]
[330392921,1719343842215,-500.0,0.00019178,2]
[330392922,1719343842225,-652.42,0.00019178,2]
[330392923,1719343842235,-500.0,0.00019178,2]
[330392924,1719343842244,-1812.15,0.00019178,2]
[330392925,1719343842253,-500.0,0.00019178,2]
[330392926,1719343842263,-1123.0,0.00019178,2]
[330392927,1719343842272,-500.0,0.00019178,2]
[330392928,1719343842282,-835.53,0.00019178,2]
[330392929,1719343842291,-1318.1,0.00019178,2]
[330392930,1719343842300,-500.0,0.00019178,2]
[330392931,1719343842310,-500.0,0.00019178,2]
[330392932,1719343842320,-500.0,0.00019178,2]
[330392933,1719343842329,-1011.44,0.00019178,2]
[330392934,1719343842338,-1112.79,0.00019178,2]
[330392935,1719343842348,-500.0,0.00019178,2]
[330392936,1719343842357,-500.0,0.00019178,2]
[330392937,1719343842368,-500.0,0.00019178,2]
[330392938,1719343842377,-500.0,0.00019178,2]
[330392939,1719343842386,-500.0,0.00019178,2]
[330392940,1719343842395,-573.86,0.00019178,2]
[330392941,1719343842405,-500.0,0.00019178,2]
[330392942,1719343842415,-500.0,0.00019178,2]
[330392943,1719343842424,-500.0,0.00019178,2]
[330392944,1719343842434,-1062.67,0.00019178,2]
[330392945,1719343842444,-500.0,0.00019178,2]
[330392946,1719343842453,-797.4,0.00019178,2]
[330392947,1719343842463,-500.0,0.00019178,2]
[330392948,1719343842472,-691.5,0.00019178,2]
[330392949,1719343842484,-1366.51,0.00019178,2]
[330392950,1719343842494,-500.0,0.00019178,2]
[330392951,1719343842503,-500.0,0.00019178,2]
[330392952,1719343842513,-500.0,0.00019178,2]
[330392953,1719343842524,-549.35,0.00019178,2]
[330392954,1719343842533,-500.0,0.00019178,2]
[330392955,1719343842543,-500.0,0.00019178,2]
[330392956,1719343842555,-885.38,0.00019178,2]
[330392957,1719343842564,-530.05,0.00019178,2]
[330392958,1719343842574,-500.0,0.00019178,2]
[330392959,1719343842584,-500.0,0.00019178,2]
[330392960,1719343842593,-500.0,0.00019178,2]
[330392961,1719343842603,-1434.9,0.00019178,2]
[330392962,1719343842612,-500.0,0.00019178,2]
[330392963,1719343842622,-500.0,0.00019178,2]
[330392964,1719343842632,-597.97,0.00019178,2]
[330392965,1719343842642,-500.0,0.00019178,2]
[330392966,1719343842651,-537.56,0.00019178,2]
[330392967,1719343842662,-500.0,0.00019178,2]
[330392968,1719343842672,-500.0,0.00019178,2]
[330392969,1719343842681,-500.0,0.00019178,2]
[330392970,1719343842691,-2798.06,0.00019178,2]
[330392971,1719343842701,-500.0,0.00019178,2]
[330392972,1719343842710,-1746.08,0.00019178,2]
[330392973,1719343842720,-500.0,0.00019178,2]
[330392974,1719343842729,-1022.02,0.00019178,2]
[330392975,1719343842740,-500.0,0.00019178,2]
[330392976,1719343842750,-1317.52,0.00019178,2]
[330392977,1719343842759,-1225.89,0.00019178,2]
[330392978,1719343842769,-1389.12,0.00019178,2]
[330392979,1719343842778,-151.0,0.00019178,2]
[330392980,1719343842788,-500.0,0.00019178,2]
[330392981,1719343842797,-806.98,0.00019178,2]
[330392982,1719343842807,-500.0,0.00019178,2]
[330392983,1719343842816,-500.0,0.00019178,2]
[330392984,1719343842825,-500.0,0.00019178,2]
[330392985,1719343842835,-500.0,0.00019178,2]
[330392986,1719343842844,-2878.48,0.00019178,2]
[330392987,1719343842853,-500.0,0.00019178,2]
[330392988,1719343842864,-500.0,0.00019178,2]
[330392989,1719343842873,-500.0,0.00019178,2]
[330392990,1719343842883,-715.5,0.00019178,2]
[330392991,1719343842892,-500.0,0.00019178,2]
[330392992,1719343842902,-500.0,0.00019178,2]
[330392993,1719343842911,-500.0,0.00019178,2]
[330392994,1719343842921,-1918.17,0.00019178,2]
[330392995,1719343842930,-1821.62,0.00019178,2]
[330392996,1719343842940,-1833.08,0.00019178,2]
[330392997,1719343842949,-500.0,0.00019178,2]
[330392998,1719343842958,-812.56,0.00019178,2]
[330392999,1719343842968,-500.0,0.00019178,2]
[330393000,1719343842978,-533.92,0.00019178,2]
[330393001,1719343842988,-500.0,0.00019178,2]
[330393002,1719343842997,-500.0,0.00019178,2]
[330393003,1719343843006,-1557.55,0.00019178,2]
[330393004,1719343843016,-500.0,0.00019178,2]
[330393005,1719343843025,-500.0,0.00019178,2]
[330393006,1719343843034,-151.0,0.00019178,2]
[330393007,1719343843044,-500.0,0.00019178,2]
[330393008,1719343843053,-500.0,0.00019178,2]
[330393009,1719343843063,-1841.08695904,0.00019178,2]
[330393021,1719343843808,-185.38304096,0.00019178,2]
[330393022,1719343843819,-2110.95,0.00019178,2]
[330393023,1719343843829,-788.75,0.00019178,2]
[330393024,1719343843840,-500.0,0.00019178,2]
[330393025,1719343843851,-500.86,0.00019178,2]
[330393026,1719343843861,-532.02,0.00019178,2]
[330393027,1719343843874,-500.0,0.00019178,2]
[330393028,1719343843884,-1626.45,0.00019178,2]
[330393029,1719343843893,-996.18,0.00019178,2]
[330393030,1719343843906,-807.49,0.00019178,2]
[330393031,1719343843916,-619.98,0.00019178,2]
[330393032,1719343843926,-500.0,0.00019178,2]
[330393033,1719343843935,-500.0,0.00019178,2]
[330393034,1719343843945,-760.65,0.00019178,2]
[330393035,1719343843955,-500.0,0.00019178,2]
[330393036,1719343843965,-355.3514977,0.00019178,2]
[330393037,1719343844023,-517.8985023,0.00019178,2]
[330393038,1719343844032,-733.6296484,0.00019178,2]
[330393039,1719343844044,-41.5503516,0.00019178,2]
[330393040,1719343844054,-500.0,0.00019178,2]
[330393041,1719343844064,-653.86,0.00019178,2]
[330393042,1719343844074,-20.6155658,0.00019178,2]
[330393043,1719343844087,-479.3844342,0.00019178,2]
[330393044,1719343844097,-655.2555659,0.00019178,2]
[330393045,1719343844108,-953.4244341,0.00019178,2]
[330393046,1719343844119,-1856.78,0.00019178,2]
[330393047,1719343844129,-500.0,0.00019178,2]
[330393048,1719343844143,-790.78,0.00019178,2]
[330393049,1719343844153,-505.14,0.00019178,2]
[330393050,1719343844163,-500.0,0.00019178,2]
[330393051,1719343844172,-500.0,0.00019178,2]
[330393052,1719343844184,-500.0,0.00019178,2]
[330393053,1719343844193,-500.0,0.00019178,2]
[330393054,1719343844203,-500.0,0.00019178,2]
[330393055,1719343844214,-1214.88,0.00019178,2]
[330393056,1719343844223,-622.63,0.00019178,2]
[330393057,1719343844233,-1639.2,0.00019178,2]
[330393058,1719343844243,-2731.82,0.00019178,2]
[330393059,1719343844253,-72.82647348,0.00019178,2]
[330393060,1719343844267,-427.17352652,0.00019178,2]
[330393061,1719343844277,-283.08647348,0.00019178,2]
[330393063,1719343845168,-498.50265586,0.0001818,2]
[330393064,1719343845179,-603.445,0.00018796,2]
[330393065,1719343845189,-231.12352652,0.00019178,2]
[330393066,1719343845200,-959.2,0.00019178,2]
[330393067,1719343845211,-500.0,0.00019178,2]
[330393068,1719343845221,-500.0,0.00019178,2]
[330393069,1719343845231,-1660.54,0.00019178,2]
[330393070,1719343845241,-518.01,0.00019178,2]
[330393071,1719343845251,-500.0,0.00019178,2]
[330393072,1719343845261,-857.13,0.00019178,2]
[330393073,1719343845271,-325.65747762,0.00019178,2]
[330393074,1719343845283,-174.34252238,0.00019178,2]
[330393075,1719343845294,-500.0,0.00019178,2]
[330393076,1719343845303,-58.16944487,0.00019178,2]
[330393077,1719343845316,-441.83055513,0.00019178,2]
[330393078,1719343845696,-213.64103349,0.00019178,2]
[330393079,1719343845721,-286.35896651,0.00019178,2]
[330393080,1719343845732,-500.0,0.00019178,2]
[330393081,1719343845742,-817.45,0.00019178,2]
[330393082,1719343845752,-943.74,0.00019178,2]
[330393083,1719343845761,-1273.72,0.00019178,2]
[330393084,1719343845771,-904.5,0.00019178,2]
[330393085,1719343845781,-500.0,0.00019178,2]
[330393086,1719343845790,-500.0,0.00019178,2]
[330393087,1719343845800,-500.0,0.00019178,2]
[330393088,1719343845810,-500.0,0.00019178,2]
[330393089,1719343845819,-685.88,0.00019178,2]
[330393090,1719343845829,-500.0,0.00019178,2]
[330393091,1719343845839,-500.0,0.00019178,2]
[330393092,1719343845848,-651.68,0.00019178,2]
[330393093,1719343845858,-1455.11,0.00019178,2]
[330393094,1719343845868,-717.03,0.00019178,2]
[330393095,1719343845878,-500.0,0.00019178,2]
[330393096,1719343845888,-500.0,0.00019178,2]
[330393097,1719343845897,-872.85,0.00019178,2]
[330393098,1719343845907,-500.0,0.00019178,2]
[330393099,1719343845917,-673.27,0.00019178,2]
[330393100,1719343845927,-833.57,0.00019178,2]
[330393101,1719343845936,-1812.06,0.00019178,2]
[330393102,1719343845946,-1560.77,0.00019178,2]
[330393103,1719343845956,-500.0,0.00019178,2]
[330393104,1719343845967,-500.0,0.00019178,2]
[330393105,1719343845977,-1097.66,0.00019178,2]
[330393106,1719343845986,-500.0,0.00019178,2]
[330393107,1719343845996,-500.0,0.00019178,2]
[330393108,1719343846006,-234.344738,0.00019178,2]
[330393109,1719343846020,-265.655262,0.00019178,2]
[330393110,1719343846030,-135.73076058,0.00019178,2]
[330393111,1719343846042,-1533.01923942,0.00019178,2]
[330393112,1719343846052,-852.12076058,0.00019178,2]
[330393113,1719343846065,-476.90923942,0.00019178,2]
[330393114,1719343846075,-500.0,0.00019178,2]
[330393115,1719343846088,-500.0,0.00019178,2]
[330393116,1719343846098,-500.0,0.00019178,2]
[330393117,1719343846108,-444.69076058,0.00019178,2]
[330393128,1719343846339,-55.30923942,0.00019178,2]
[330393129,1719343846351,-500.0,0.00019178,2]
[330393130,1719343846362,-152.08056218,0.00019178,2]
[330393131,1719343846376,-1812.00943782,0.00019178,2]
[330393132,1719343846385,-549.64,0.00019178,2]
[330393133,1719343846395,-526.14,0.00019178,2]
[330393134,1719343846405,-594.11,0.00019178,2]
[330393135,1719343846415,-9.1977622,0.00019178,2]
[330393139,1719343847089,-657.84738546,0.00019167,2]
[330393140,1719343847099,-378.6472136,0.00019173,2]
[330393141,1719343847109,-222.23456371,0.00019178,2]
[330393147,1719343887617,208.29876607,0.00014999,2]
[330393150,1719344050192,152.56,0.00018849,30]
[330393151,1719344071021,2579.98752772,6.94e-05,2]
[330393152,1719344145394,19690.11111152,0.000112,2]
[330393153,1719344145421,8795.76031375,0.000112,2]
[330393154,1719344175152,19606.28873825,8.412e-05,2]
[330393156,1719344210304,1500.0,0.00026,120]
[330393157,1719344220169,19606.28873825,0.00010196,2]
[330393159,1719344221424,171.75,0.0001398,2]
[330393161,1719344238866,210.0116405,0.0001,2]
[330393162,1719344290306,3953.98424367,0.00012121,2]
[330393163,1719344370270,283.57813973,0.00014692,2]
[330393166,1719344416803,283.28659729,0.00014692,2]
[330393170,1719344580394,699.35,0.00014899,2]
[330393173,1719344652688,152.56,0.00018849,30]
[330393177,1719344849523,199.90728781,0.00014999,2]
[330393221,1719345032131,-1311.4177585,0.00015076,2]
[330393222,1719345032142,-259.94301548,0.00015076,2]
[330393223,1719345032155,-837.96492602,0.00015076,2]
[330393224,1719345032164,-1232.39146387,0.00016193,2]
[330393225,1719345032174,-511.43,0.00016455,2]
[330393226,1719345032183,-250.0,0.00016664,2]
[330393227,1719345032192,-150.0,0.00016678,2]
[330393228,1719345032201,-170.36,0.00016717,2]
[330393229,1719345032211,-1035.13,0.00016735,2]
[330393230,1719345032220,-1990.0,0.00016742,2]
[330393231,1719345032229,-300.0,0.00016753,2]
[330393232,1719345032239,-21392.73,0.00016754,2]
[330393233,1719345032248,-499.99,0.00016754,2]
[330393234,1719345032257,-155.0,0.00016763,2]
[330393235,1719345032267,-1027.37,0.00016764,2]
[330393236,1719345032276,-177.2,0.00016766,2]
[330393237,1719345032285,-250.0,0.00016768,2]
[330393238,1719345032294,-447.43,0.00016817,2]
[330393239,1719345032304,-447.43,0.00016863,2]
[330393240,1719345032313,-447.43,0.00016909,2]
[330393241,1719345032322,-1000.0,0.0001692,2]
[330393242,1719345032331,-447.43,0.00016955,2]
[330393243,1719345032341,-447.43,0.00017001,2]
[330393244,1719345032350,-447.43,0.00017047,2]
[330393245,1719345032359,-447.43,0.00017094,2]
[330393246,1719345032369,-447.43,0.0001714,2]
[330393253,1719345032449,-699.35,0.00017163,2]
[330393255,1719345032458,-447.43,0.00017186,2]
[330393256,1719345032468,-155.57295146,0.00017213,2]
[330393257,1719345032477,-167.8,0.00017214,2]
[330393258,1719345032486,-447.43,0.00017232,2]
[330393259,1719345032495,-155.0,0.00017256,2]
[330393260,1719345032504,-155.40152861,0.00017256,2]
[330393261,1719345032514,-208.06582272,0.00017256,2]
[330393262,1719345032524,-8703.86,0.00017257,2]
[330393263,1719345032535,-475.03236133,0.00017259,2]
[330393264,1719345032545,-447.43,0.00017278,2]
[330393265,1719345032554,-447.43,0.00017324,2]
[330393266,1719345032564,-447.43,0.0001737,2]
[330393267,1719345032575,-447.43,0.00017416,2]
[330393268,1719345032584,-447.43,0.00017462,2]
[330393269,1719345032593,-831.42004658,0.00017507,2]
[330393270,1719345032602,-447.43,0.00017508,2]
[330393271,1719345032612,-163.65,0.00017519,2]
[330393272,1719345032622,-155.0,0.00017554,2]
[330393273,1719345032631,-447.43,0.00017555,2]
[330393274,1719345032640,-447.43,0.00017601,2]
[330393275,1719345032651,-1500.25333624,0.00017631,2]
[330393276,1719345032660,-523.7195419,0.00017632,2]
[330393277,1719345032669,-523.7195419,0.00017632,2]
[330393278,1719345032677,-447.43,0.00017647,2]
[330393279,1719345032686,-447.43,0.00017693,2]
[330393280,1719345032695,-150.0,0.00017967,2]
[330393281,1719345032705,-1000.0,0.00018,3]
[330393282,1719345032714,-1000.0,0.00018,3]
[330393283,1719345032724,-1000.0,0.00018,3]
[330393284,1719345032733,-1000.0,0.00018,3]
[330393285,1719345032743,-1000.0,0.00018,3]
[330393286,1719345032752,-1000.0,0.00018,3]
[330393287,1719345032761,-1000.0,0.00018,3]
[330393288,1719345032771,-1000.0,0.00018,3]
[330393289,1719345032780,-1005.0,0.00018,3]
[330393290,1719345032791,-1000.0,0.00018,3]
[330393291,1719345032802,-1000.0,0.00018,3]
[330393292,1719345032812,-1000.0,0.00018,3]
[330393293,1719345032822,-1001.0,0.00018,3]
[330393294,1719345032832,-1000.0,0.00018,3]
[330393295,1719345032842,-1000.0,0.00018,3]
[330393296,1719345032851,-155.0,0.0001818,2]
[330393297,1719345032861,-442.0,0.000182,3]
[330393298,1719345032870,-420.0,0.00018303,2]
[330393299,1719345032880,-1000.0,0.000184,3]
[330393300,1719345032889,-5169.0,0.00018415,2]
[330393301,1719345032899,-1197.0,0.00018415,2]
[330393302,1719345032908,-5801.0,0.00018415,2]
[330393303,1719345032917,-2552.66706075,0.0001878,2]
[330393304,1719345032926,-1000.0,0.000188,3]
[330393305,1719345032935,-48026.0,0.00018849,2]
[330393306,1719345032944,-169.62862104,0.00018878,2]
[330393307,1719345032954,-168284.64947182,0.00018878,2]
[330393308,1719345032964,-32717.08319017,0.0001888,2]
[330393309,1719345032973,-512.7758,0.0001894,2]
[330393310,1719345032983,-234.60376559,0.0001894,2]
[330393311,1719345032992,-169.62862103,0.0001894,2]
[330393312,1719345033002,-7500.0,0.0001894,2]
[330393313,1719345033011,-3473.41000094,0.0001894,2]
[330393314,1719345033022,-169.75322856,0.0001894,2]
[330393315,1719345033031,-8903.86823909,0.00018941,2]
[330393316,1719345033040,-183357.22755406,0.00018977,3]
[330393317,1719345033051,-465.62458284,0.00018978,2]
[330393318,1719345033060,-337.997,0.00018978,2]
[330393319,1719345033069,-948.6865,0.00018978,2]
[330393320,1719345033078,-34531.8055,0.00018978,2]
[330393321,1719345033087,-290.89568622,0.00018989,2]
[330393322,1719345033097,-1715.45,0.0001899,2]
[330393323,1719345033106,-1515.41483,0.0001899,2]
[330393324,1719345033115,-1515.41483,0.0001899,2]
[330393325,1719345033125,-1515.41483,0.0001899,2]
[330393326,1719345033135,-164.71848981,0.0001903,2]
[330393327,1719345033145,-1515.41483,0.0001903,2]
[330393328,1719345033155,-164.71848981,0.0001903,2]
[330393329,1719345033164,-164.71848981,0.0001903,2]
[330393330,1719345033173,-1000.0,0.00019035,2]
[330393331,1719345033182,-151.0,0.0001904,2]
[330393332,1719345033192,-345.699459,0.0001904,2]
[330393333,1719345033201,-345.699459,0.0001904,2]
[330393334,1719345033210,-151.0,0.0001904,2]
[330393335,1719345033219,-151.0,0.0001904,2]
[330393336,1719345033228,-151.0,0.0001904,2]
[330393337,1719345033238,-151.468293,0.0001904,2]
[330393338,1719345033248,-151.0,0.0001904,2]
[330393339,1719345033259,-151.179812,0.0001904,2]
[330393340,1719345033269,-153.105497,0.0001904,2]
[330393341,1719345033278,-254.350847,0.0001904,2]
[330393342,1719345033287,-151.0,0.0001904,2]
[330393343,1719345033297,-151.0,0.0001904,2]
[330393344,1719345033306,-151.0,0.0001904,2]
[330393345,1719345033315,-151.0,0.0001904,2]
[330393346,1719345033325,-151.372515,0.0001904,2]
[330393347,1719345033334,-151.0,0.0001904,2]
[330393348,1719345033344,-151.0,0.0001904,2]
[330393349,1719345033353,-151.0,0.0001904,2]
[330393350,1719345033363,-1045662.66508276,0.0001904,2]
[330393351,1719345033376,-730.99343815,0.0001904,2]
[330393352,1719345033392,-14243.36912199,0.0001904,2]
[330393353,1719345033842,-1075.9549519,0.0001904,2]
[330393354,1719345033854,-2100.0,0.0001904,2]
[330393359,1719345038035,-244.62743291,0.00017185,2]
[330393360,1719345038045,-155.0,0.00017646,2]
[330393361,1719345038055,-7288.29285415,0.0001904,7]
[330393362,1719345038067,-3378.6,0.0001904,7]
[330393363,1719345038136,-358.005,0.0001904,7]
[330393364,1719345038234,-2929.22399896,0.0001904,7]
[330393365,1719345038247,-1920.38628,0.0001904,7]
[330393366,1719345038259,-674.10473515,0.0001904,7]
[330393514,1719345040129,-1201.23505853,0.0001904,7]
[330393516,1719345040141,-884.29427894,0.0001904,7]
[330393518,1719345040156,-345.1849985,0.0001904,7]
[330393520,1719345040167,-1476.6540648,0.0001904,7]
[330393523,1719345040183,-1609.12646155,0.0001904,7]
[330393525,1719345040197,-1065.91221694,0.0001904,7]
[330393533,1719345040265,-420.64979372,0.0001904,7]
[330393535,1719345040277,-17186.31877508,0.0001904,7]
[330393537,1719345040288,-3650.30341244,0.0001904,7]
[330393547,1719345040372,-993.28232923,0.0001904,7]
[330393553,1719345040426,-471.98,0.0001904,7]
[330393555,1719345040437,-2769.60858233,0.0001904,7]